Cogmind - Beta 17.1 @@@ ROGUE MODE // 2026.08.27 @ 03:38:44 Player: cptwinky Result: Destroyed by H-66 Slayer with Gauss Rifle Performance ------------- Evolutions (5) 2500 Regions Visited (22) 4400 Robots Destroyed (280) 1400 Value Destroyed (7780) 7780 Prototype IDs (40) 800 Alien Tech Used (1) 200 Bonus (8183) 8183 TOTAL SCORE: 25263 Bonus ------- High Alert Combat Kills 254 Follower Combat Kills 2877 Hunted by Unchained 500 Spooked CY-PHR 5500 Entered Garrisons 400 Used RIF Installer 1500 Network Hubs Disabled 200 Met Data Miner 300 Built Enhanced Grunts 300 A7 Reached Mainframe 300 Met R17 at Cetus 500 Friendly Fire -4448 Cogmind --------- Core Integrity 0/1000 Matter 206/300 Energy 100/100 System Corruption 8% Temperature Cool (0) Movement Core (100) Ox1 Location -5/Factory Parts ------- > --- POWER (2) -------- (None) > --- PROPULSION (6) --- (None) > --- UTILITY (7) ------ Small Storage Unit Advanced Signal Interpreter Improved Hacking Suite > --- WEAPON (3) ------- (None) > --- INVENTORY (8) ---- Compact Particle Reactor Medium Storage Unit Improved Utility Shielding Centrium Medium Armor Plating Relay Coupler [NC] (22) Cooled Pulse Rifle Advanced Plasma Cannon Improved Remote Datajack Peak State ------------ > --- POWER ------------ Light Deuterium Engine Light Fission Core > --- PROPULSION ------- Improved Flight Unit Improved Flight Unit Improved VTOL Module Improved VTOL Module Nuclear Pulse Thruster Biomechanical Wings > --- UTILITY ---------- Small Storage Unit Enhanced Optical Array Advanced Signal Interpreter Centrium Medium Armor Plating Improved Hacking Suite Improved Hacking Suite Advanced System Shield > --- WEAPON ----------- Advanced Datajack Makeshift Axe > --- INVENTORY -------- Compact Particle Reactor Advanced Sensor Array Microactuators Microactuators Improved Utility Shielding Improved Trap Extractor Phase Cannon Precision Rocket Launcher [Rating: 84] Favorites ----------- Power Heavy Ion Engine Engine Heavy Ion Engine Power Core Light Fission Core Reactor Compact Particle Reactor Propulsion Light Treads Treads Light Treads Wheel Wheel Flight Unit Improved Flight Unit Utility Hacking Suite Device Advanced Sensor Array Storage Huge Storage Unit Processor Improved Signal Interpreter Hackware Hacking Suite Protection Hardened Light Armor Plating Weapon Improved Assault Rifle Energy Gun EM Pulse Gun Energy Cannon Phase Cannon Ballistic Gun Improved Assault Rifle Ballistic Cannon Light Cannon Launcher Precision Rocket Launcher Special Weapon Improved Remote Datajack Impact Weapon Heavy Hammer Slashing Weapon Makeshift Axe Special Melee Weapon Improved Datajack Build | -11 -10 -10 -9 -9 -8 -8 -8 -8 -8 -7 -7 -7 -7 -6 -6 -6 -6 -6 -6 -5 -5 -5 ------- Run | Yrd Mat Min Mat Sto Mat Gar Mat Gar Mat Fac Low Low Dat Pro Fac Ext Cet Arc Hub Fac Was Fac Slots Evolved 10 | . . . 2 . 2 . . . . 2 . . . . 2 . . . . 2 . . Power 1 | . . . . . . . . . . . . . . . . . . . . 1 . . Propulsion 4 | . . . 1 . 1 . . . . . . . . . 1 . . . . 1 . . Utility 5 | . . . 1 . 1 . . . . 2 . . . . 1 . . . . . . . Weapon . | . . . . . . . . . . . . . . . . . . . . . . . Parts Attached 167 | 7 5 2 17 25 2 7 21 8 12 13 9 . . 2 3 10 5 3 1 9 . 6 Power 13 | 1 . 1 1 2 . . . . . 2 . . . . . 1 . . 1 2 . 2 Engine 9 | 1 . 1 1 2 . . . . . 2 . . . . . . . . 1 . . 1 Core 3 | . . . . . . . . . . . . . . . . 1 . . . 1 . 1 Reactor 1 | . . . . . . . . . . . . . . . . . . . . 1 . . Propulsion 54 | 2 . . 7 10 1 2 11 5 4 2 4 . . . . 2 . . . 1 . 3 Treads 39 | 2 . . 6 10 1 2 7 5 4 2 . . . . . . . . . . . . Leg . | . . . . . . . . . . . . . . . . . . . . . . . Wheel 3 | . . . . . . . 3 . . . . . . . . . . . . . . . Hover . | . . . . . . . . . . . . . . . . . . . . . . . Flight 12 | . . . 1 . . . 1 . . . 4 . . . . 2 . . . 1 . 3 Utility 57 | 1 2 . 4 3 1 2 7 2 6 5 3 . . 2 3 5 5 2 . 3 . 1 Device 11 | . . . 1 1 . . 1 . 1 2 . . . 1 . 1 . . . 2 . 1 Storage 6 | 1 1 . 1 . . . 2 . . . . . . 1 . . . . . . . . Processor 5 | . . . . . . . . . . 1 . . . . 1 1 2 . . . . . Hackware 19 | . . . 1 1 1 . 1 1 3 1 3 . . . 2 1 1 2 . 1 . . Protection 16 | . 1 . 1 1 . 2 3 1 2 1 . . . . . 2 2 . . . . . Artifact . | . . . . . . . . . . . . . . . . . . . . . . . Weapon 43 | 3 3 1 5 10 . 3 3 1 2 4 2 . . . . 2 . 1 . 3 . . Energy Gun 2 | 2 . . . . . . . . . . . . . . . . . . . . . . Energy Cannon 3 | . . . . . . 1 . . . . . . . . . . . . . 2 . . Ballistic Gun 13 | 1 1 . . 5 . 1 3 . 1 1 . . . . . . . . . . . . Ballistic Cannon 9 | . 2 . 4 2 . . . . . . 1 . . . . . . . . . . . Launcher 7 | . . 1 1 1 . 1 . 1 . 1 . . . . . 1 . . . . . . Special Weapon 1 | . . . . . . . . . . . . . . . . . . . . 1 . . Impact Weapon 3 | . . . . 1 . . . . . 2 . . . . . . . . . . . . Slashing Weapon 2 | . . . . . . . . . . . 1 . . . . 1 . . . . . . Piercing Weapon . | . . . . . . . . . . . . . . . . . . . . . . . Special Melee Weapon 3 | . . . . 1 . . . . 1 . . . . . . . . 1 . . . . Unidentified Prototypes 10 | . . . 1 4 . . 1 . . 1 1 . . 1 . . 1 . . . . . Parts Lost 45 | . 1 . . 2 . 1 6 3 4 1 . . . . . 3 . . . 7 . 17 Power 8 | . . . . . . . . . . 1 . . . . . 1 . . . 2 . 4 Propulsion 16 | . . . . . . . 4 1 1 . . . . . . . . . . 4 . 6 Utility 14 | . . . . 1 . 1 2 2 1 . . . . . . 2 . . . . . 5 Weapon 7 | . 1 . . 1 . . . . 2 . . . . . . . . . . 1 . 2 Highest Loss Streak 9 | . 1 . . 1 . 1 2 1 4 1 . . . . . 1 . . . 5 . 9 To Critical Strikes 1 | . . . . . . . 1 . . . . . . . . . . . . . . . Average Backups 18 | 2 8 15 23 24 24 24 24 24 24 21 20 5 5 6 7 7 7 8 8 7 8 7 Power 1 | . 1 1 1 1 1 1 1 . 1 1 1 1 1 1 1 . 1 2 2 . 1 1 Propulsion 4 | . . . 3 7 7 7 7 7 8 6 5 1 1 1 . . 1 1 1 . . . Utility 6 | . 3 4 8 6 7 8 8 8 7 8 7 1 1 2 4 3 3 3 3 4 4 4 Weapon 5 | 1 3 9 9 8 7 6 7 7 5 4 5 2 2 1 2 2 2 2 2 2 2 1 Tool/Special . | . . . . . . . . . . . . . . . . . . . . . . . Unused Backups 42 | . 4 1 9 4 . 3 3 . . 1 6 . . 2 . 3 . . . 2 . 4 Power 5 | . . . . 1 . . . . . . 1 . . 1 . 1 . . . 1 . . Propulsion 3 | . . . . . . . 1 . . 1 1 . . . . . . . . . . . Utility 17 | . 1 . 3 . . 2 1 . . . 3 . . 1 . 2 . . . 1 . 3 Weapon 16 | . 3 1 6 3 . . 1 . . . 1 . . . . . . . . . . 1 Tool/Special 1 | . . . . . . 1 . . . . . . . . . . . . . . . . Average Slot Usage (%) 96 | . 99 100 99 99 99 100 98 99 99 99 100 100 100 94 91 92 92 92 93 81 72 62 Engine 8 | . 14 14 11 10 9 9 9 9 9 6 7 7 7 7 6 3 . . 5 8 11 5 Treads 24 | . 28 28 32 33 36 36 31 36 35 30 22 . . . . . . . . . . . Flight 7 | . . . . . . . . . . . 7 30 30 28 31 30 31 31 31 24 16 15 Device 2 | . . . 2 2 . . 4 1 . 4 5 7 7 7 4 1 4 . . 4 5 3 Storage 8 | . 14 14 11 11 9 9 9 9 9 7 5 . . 4 6 6 6 6 6 4 5 5 Processor 3 | . . . . . . . . . . 7 7 7 7 7 10 11 7 12 12 11 11 9 Hackware 13 | . . . 8 8 17 18 13 15 18 22 24 23 23 21 18 16 18 17 18 16 16 16 Protection 8 | . 13 14 10 11 9 9 8 9 8 2 1 7 7 2 1 4 6 6 6 . . . Ballistic Gun 7 | . 7 . . 8 14 15 17 16 17 13 8 . . . . . . . . . . . Ballistic Cannon 6 | . 4 25 21 9 . . . . . . . . . . . . . . . . . . Slashing Weapon 1 | . . . . . . . . . . . 1 7 7 7 6 2 4 6 6 4 5 3 Special Melee Weapon 1 | . . . . . . . . . . . 2 7 7 7 6 6 6 6 6 . . . Peak Build Rating 84 | 6 9 10 20 28 33 33 35 37 35 39 43 43 43 48 51 56 65 75 75 84 57 63 Average Rating 33 | 5 7 9 16 24 32 31 31 34 31 34 39 43 43 43 49 50 59 73 73 67 57 50 On Entrance 38 | . 6 9 9 20 27 33 32 32 35 31 37 43 43 43 44 51 53 65 75 73 57 57 Avg Prop Armor Cover (%) 7 | . . . . . . . 7 . . . . . . . . . . . . 2 . 6 Naked Turns . | . . . . . . . . . . . . . . . . . . . . . . . Heaviest Build 105 | 14 34 34 100 105 99 102 102 104 101 97 95 13 13 17 18 25 29 23 23 28 14 21 Greatest Support 92 | 40 40 40 60 69 92 92 89 85 83 82 82 20 20 20 25 26 26 26 26 33 15 21 Greatest Overweight (x) 9 | . . . 1 1 1 1 9 1 1 1 4 . . . . . 1 . . 1 . 2 Average Overweight (x) . | . . . . 1 1 1 1 1 1 1 . . . . . . . . . . . . Largest Inventory Capacity 25 | 8 15 15 25 25 25 25 25 25 25 25 25 5 5 8 8 8 8 8 8 8 8 8 Average Capacity 19 | 7 9 15 24 25 25 25 25 25 25 25 21 5 5 7 8 8 8 8 8 7 8 8 Most Carried 25 | 4 15 15 25 25 25 25 25 25 25 25 25 5 5 8 8 8 8 8 8 8 8 8 Average Carried 18 | 2 8 14 23 24 24 24 24 24 24 21 20 5 5 6 7 7 7 8 8 7 8 7 Final Capacity 25 | 8 15 15 25 25 25 25 25 25 25 25 5 5 5 8 8 8 8 8 8 8 8 8 Final Carried 25 | 4 15 15 25 25 25 25 25 25 25 25 5 5 5 8 8 8 8 8 8 8 8 8 Class Distribution -------------------- 39% | Mutant 13% | Hacker-Mutant 9% | Scavenger-Mutant 8% | Commander-Sprinter 6% | Hacker-Sprinter 6% | Bothacker-Mutant 5% | Commander-Mutant 5% | Hacker-Scout 3% | Scavenger-Sprinter Dominant Class ---------------- Mutant | -10/Materials Mutant | -10/Mines Mutant | -9/Materials Mutant | -9/Storage Commander-Mutant | -8/Materials Hacker-Mutant | -8/Garrison Mutant | -8/Materials Hacker-Mutant | -8/Garrison Scavenger-Mutant | -8/Materials Bothacker-Mutant | -7/Factory Bothacker-Mutant | -7/Lower Caves Hacker-Sprinter | -7/Lower Caves Hacker-Sprinter | -7/Data Miner Hacker-Sprinter | -6/Proximity Caves Hacker-Scout | -6/Factory Commander-Sprinter | -6/Extension Commander-Sprinter | -6/Cetus Commander-Sprinter | -6/Archives Scavenger-Sprinter | -6/Hub_04(d) Hacker-Scout | -5/Factory Hacker-Sprinter | -5/Waste Hacker-Scout | -5/Factory Resources | -11 -10 -10 -9 -9 -8 -8 -8 -8 -8 -7 -7 -7 -7 -6 -6 -6 -6 -6 -6 -5 -5 -5 ----------- Run | Yrd Mat Min Mat Sto Mat Gar Mat Gar Mat Fac Low Low Dat Pro Fac Ext Cet Arc Hub Fac Was Fac Matter Collected 7570 | 207 207 156 1057 1251 150 453 1201 407 457 234 438 10 . 80 60 441 157 30 10 63 . 501 Remotely . | . . . . . . . . . . . . . . . . . . . . . . . Salvage Created 8486 | 40 663 244 800 1444 165 375 1366 424 319 242 141 . . 83 157 870 103 258 . 113 . 679 Parts 489 | 7 36 26 58 65 7 26 84 17 18 15 4 . . 6 7 33 11 21 . 7 . 41 Haulers Intercepted 23 | . 2 . 6 5 1 . 5 . 1 1 . . . . 1 . . . . . . 1 Recyclers Shooed 9 | . 1 . . 1 . . 3 . 4 . . . . . . . . . . . . . Parts Field Recycled . | . . . . . . . . . . . . . . . . . . . . . . . Retrieved Matter . | . . . . . . . . . . . . . . . . . . . . . . . Parts Self-Destructed 12 | . . . . . . . . . . . 6 3 . 3 . . . . . . . . Prevented . | . . . . . . . . . . . . . . . . . . . . . . . Parts Restored . | . . . . . . . . . . . . . . . . . . . . . . . Kills | -11 -10 -10 -9 -9 -8 -8 -8 -8 -8 -7 -7 -7 -7 -6 -6 -6 -6 -6 -6 -5 -5 -5 ------- Run | Yrd Mat Min Mat Sto Mat Gar Mat Gar Mat Fac Low Low Dat Pro Fac Ext Cet Arc Hub Fac Was Fac Combat Hostiles Destroyed 181 | . 10 12 26 26 2 17 25 14 5 4 2 . . 2 1 12 . . . 9 . 14 Melee 10 | . . . . 1 . . . . 1 . . . . 1 1 3 . . . 1 . 2 Guns 47 | . 7 . . 4 2 4 14 9 4 2 1 . . . . . . . . . . . Cannons 40 | . . 4 17 17 . . . . . . 1 . . . . 1 . . . . . . AOE 81 | . 3 8 9 3 . 13 10 5 . 2 . . . 1 . 7 . . . 8 . 12 Classes Destroyed 20 | 1 5 1 4 . . 1 3 1 . . . . . 3 . 1 . . . . . . Worker 20 | . 2 . 1 4 . . 5 . 1 1 . . . . . . . . . . . 6 Builder 15 | . 1 2 1 2 . . 4 . . 1 . . . . . 1 . . . . . 3 Tunneler 3 | 3 . . . . . . . . . . . . . . . . . . . . . . Hauler 23 | . 2 . 6 5 1 . 5 . 1 1 . . . . 1 . . . . . . 1 Recycler 16 | . 1 1 . 7 . . 2 . . 1 . . . . . 2 . . . . . 2 Minesweeper 1 | . . . . . . . . . . . . . . 1 . . . . . . . . Mechanic 1 | . . . 1 . . . . . . . . . . . . . . . . . . . Operator 12 | . . . 1 1 1 . . . . . . . . . . 1 . 8 . . . . Drone 5 | . . . . . . . . . . . . . . 2 . . . . . 3 . . Watcher 4 | . . . 1 . . . . . . . . . . . . 2 . . . . . 1 Swarmer 53 | . . 9 10 6 . 6 5 . . . . . . . . 3 . . . 5 . 9 Cutter 1 | . . . . . . 1 . . . . . . . . . . . . . . . . Grunt 75 | . 10 3 9 11 2 7 12 3 3 4 1 . . . . 5 . . . 1 . 4 Brawler 3 | . . . . . . . 1 . . . 1 . . . . 1 . . . . . . Duelist 1 | . . . . . . . . . . . . . . . . 1 . . . . . . Researcher 1 | . . . . . . . . . . . . . . 1 . . . . . . . . Sentry 33 | . . . 7 9 . 3 4 7 1 . . . . . . 2 . . . . . . Specialist 2 | . . . . . . . 2 . . . . . . . . . . . . . . . Hunter 4 | . . . . . . . 1 . 1 . . . . . 1 . . . . . . 1 Programmer 4 | . . . . . . . . 4 . . . . . . . . . . . . . . Butcher 1 | . . . . . . . . . . . . . . . . 1 . . . . . . Best Kill Streak 9 | 2 4 3 9 5 1 6 9 4 2 8 1 . . 2 1 9 . 6 . 5 . 7 Combat Bots Only 6 | . 3 3 6 5 1 6 6 4 2 2 1 . . 1 1 4 . . . 5 . 5 Max Kills in Single Turn 5 | 1 2 3 4 2 1 3 3 2 1 2 1 . . 1 1 3 1 1 . 3 . 5 Gunslinging 1 | . . . . . . . . 1 . . . . . . . . . . . . . . Exploded 4 | . 2 3 2 2 . 3 2 2 . 1 . . . 1 . 3 . . . 3 . 4 Melee 1 | . . . . 1 . . . . 1 . . . . 1 1 1 . . . 1 . 1 Uniques/NPCs Destroyed 2 | . . . . . . . . . . . . . . . . . 2 . . . . . Revision 17 (-6/Cetus) A7 (-6/Cetus) Combat | -11 -10 -10 -9 -9 -8 -8 -8 -8 -8 -7 -7 -7 -7 -6 -6 -6 -6 -6 -6 -5 -5 -5 -------- Run | Yrd Mat Min Mat Sto Mat Gar Mat Gar Mat Fac Low Low Dat Pro Fac Ext Cet Arc Hub Fac Was Fac Hostile Shots Fired 1040 | . 42 22 77 137 13 48 170 131 65 21 14 7 3 9 16 85 8 . 1 28 . 143 Missed 353 | . 9 5 20 49 1 12 48 34 19 6 3 3 3 8 12 40 4 . . 10 . 67 Hits 687 | . 33 17 57 88 12 36 122 97 46 15 11 4 . 1 4 45 4 . 1 18 . 76 Melee 4 | . . . . . . . . . . . 3 . . . . 1 . . . . . . Projectile 683 | . 33 17 57 88 12 36 122 97 46 15 8 4 . 1 4 44 4 . 1 18 . 76 AOE 7 | . . . . . . 2 . . . . . . . . . 3 . . . . . 2 Critical Strikes 34 | . . 1 2 2 1 2 4 7 2 1 3 . . . . 2 2 . . 5 . . Part Disruptions 2 | . 1 . . . . . . 1 . . . . . . . . . . . . . . Damage Taken 10692 | . 407 212 853 1085 222 574 1707 1382 635 193 214 69 . 12 39 656 126 . 20 595 . 1691 Core 2053 | . 75 35 49 139 64 54 175 138 88 26 15 40 . . 16 127 12 . . 167 . 833 Absorbed by Shields 448 | . . . . . . 34 150 199 . 38 . . . . . 4 23 . . . . . Ignored by Resistances 102 | . . . . . . . 102 . . . . . . . . . . . . . . . Regen/Repaired (Parts) 1299 | . 63 . 474 295 . . 171 . . . . . . . 12 166 . . . 118 . . Core Remaining (%) 63 | 100 . 56 . 53 . . . . 5 . . . . 88 . . . . 81 . . . Volleys Fired 491 | 9 37 15 75 88 19 32 84 31 17 12 6 . . 1 . 30 3 . . 16 . 16 Largest 2 | 1 2 2 2 2 2 2 2 2 2 2 2 . . 1 . 1 1 . . 1 . 1 Hottest 98 | 20 80 60 66 66 46 85 46 46 46 46 63 . . 43 . 85 43 . . 98 . 98 Shots Fired 848 | 9 74 21 143 170 38 50 156 51 37 21 12 . . 1 . 30 3 . . 16 . 16 Gun 439 | 9 72 3 . 36 38 35 144 40 37 17 8 . . . . . . . . . . . Cannon 329 | . 2 12 136 132 . 3 . . . . 4 . . . . 21 . . . 10 . 9 Launcher 78 | . . 6 7 2 . 12 12 11 . 4 . . . 1 . 9 3 . . 4 . 7 Special 2 | . . . . . . . . . . . . . . . . . . . . 2 . . Kinetic 666 | 9 15 15 136 168 38 35 144 40 37 17 12 . . . . . . . . . . . Thermal 43 | . . . . . . 3 . . . . . . . . . 21 . . . 10 . 9 Explosive 75 | . . 6 7 2 . 12 12 11 . 4 . . . 1 . 8 1 . . 4 . 7 Electromagnetic 62 | . 59 . . . . . . . . . . . . . . 1 2 . . . . . Robot Hit Streak 28 | 5 8 7 8 23 15 15 13 28 13 11 6 . . . . 10 . . . 4 . 8 Robot Miss Streak 4 | 2 3 1 4 4 2 2 2 1 3 1 1 . . . . 1 . . . . . 2 Penetration Max . | . . . . . . . . . . . . . . . . . . . . . . . Secondary Targets 10 | . 1 . . . . . 3 4 1 1 . . . . . . . . . . . . Max Gunslinging Chain 1 | . 1 . . . . . 1 1 1 1 . . . . . . . . . . . . Shots Hit Robots 724 | 7 50 16 84 134 31 35 122 43 28 19 13 . 2 7 3 68 21 15 2 8 . 16 Core Hits 394 | 3 25 16 46 40 11 34 70 30 11 13 4 . . 4 2 32 12 4 . 7 . 30 Critical Kills 2 | . . . . 1 . . . . . 1 . . . . . . . . . . . . Critical Parts Destroyed 10 | 1 . . . 4 1 1 2 . 1 . . . . . . . . . . . . . Critical Strikes 27 | 1 1 . 6 8 1 1 2 . 1 1 . . . 1 . 1 1 . . 1 . 1 Destroy 4 | 1 . . . . 1 1 1 . . . . . . . . . . . . . . . Blast 10 | . 1 . 6 3 . . . . . . . . . . . . . . . . . . Smash 8 | . . . . 5 . . 1 . 1 1 . . . . . . . . . . . . Sever 5 | . . . . . . . . . . . . . . 1 . 1 1 . . 1 . 1 Melee Attacks 303 | . . . . 26 2 15 7 8 6 4 7 3 25 10 15 67 22 19 3 30 2 32 Impact 58 | . . . . 26 2 11 4 8 2 4 1 . . . . . . . . . . . Slashing 179 | . . . . . . . . . . . 2 3 24 10 13 24 21 16 3 29 2 32 Piercing . | . . . . . . . . . . . . . . . . . . . . . . . Sneak Attacks 116 | . . . . 14 1 4 2 1 . 2 . . 2 4 2 45 18 11 1 1 . 8 Combat Hostiles 4 | . . . . 1 . . . 1 . . . . . 1 . 1 . . . . . . Follow-up Attacks . | . . . . . . . . . . . . . . . . . . . . . . . Damage Inflicted 27432 | 85 1108 709 2564 3862 582 1544 3227 1571 445 1057 247 . 84 500 178 2383 1466 996 134 1077 . 3613 Guns 5201 | 85 675 38 . 483 472 460 1730 599 365 190 104 . . . . . . . . . . . Cannons 3971 | . 38 134 1577 1895 . . . . . . 53 . . . . 274 . . . . . . Explosions 11513 | . 386 510 971 105 . 1084 1376 897 . 608 . . . 77 . 1384 385 . . 950 . 2780 Melee 6582 | . . . . 1345 110 . 92 69 44 252 90 . 84 423 178 725 1081 996 134 127 . 832 Ramming 165 | . 9 27 16 34 . . 29 6 36 7 . . . . . . . . . . . 1 Kinetic 8327 | 85 142 172 1577 2378 472 460 1730 599 365 190 157 . . . . . . . . . . . Thermal 2187 | . 333 . 61 . . . . . . . . . . . . 274 . . . . . 1519 Explosive 9310 | . . 510 910 105 . 1084 1376 897 . 608 . . . 77 . 1384 148 . . 950 . 1261 Electromagnetic 861 | . 624 . . . . . . . . . . . . . . . 237 . . . . . Impact 2002 | . . . . 1345 110 . 92 69 44 252 90 . . . . . . . . . . . Slashing 4580 | . . . . . . . . . . . . . 84 423 178 725 1081 996 134 127 . 832 Piercing . | . . . . . . . . . . . . . . . . . . . . . . . Highest Corruption 14 | . . . . . . . . 7 7 2 2 2 2 2 . . . . . 6 14 12 Average Corruption 4 | . . . . . . . . 4 7 1 2 2 2 2 . . . . . 3 11 8 Corruption Purged 7 | . . . . . . . . . . . . . . . . . . . . . 2 5 Corruption Blocked . | . . . . . . . . . . . . . . . . . . . . . . . Effects 104 | . . . . . . . . 13 34 10 13 2 1 2 . . . . . 11 4 14 Message Errors 25 | . . . . . . . . 3 7 2 4 1 1 1 . . . . . 4 . 2 Matter Fused 33 | . . . . . . . . 2 10 2 7 . . 1 . . . . . 2 1 8 Heat Flow Errors 13 | . . . . . . . . 2 4 2 . . . . . . . . . 4 . 1 Energy Discharges 10 | . . . . . . . . 2 4 1 1 . . . . . . . . . 1 1 Parts Fused 3 | . . . . . . . . 1 1 1 . . . . . . . . . . . . Data Loss (minor) 9 | . . . . . . . . . 4 1 1 1 . . . . . . . 1 . 1 Data Loss (major) 3 | . . . . . . . . 1 1 . . . . . . . . . . . . 1 Misfires 5 | . . . . . . . . 1 3 1 . . . . . . . . . . . . Misdirections 2 | . . . . . . . . . . . . . . . . . . . . . 2 . Weapon Failures 1 | . . . . . . . . 1 . . . . . . . . . . . . . . Overload Shots . | . . . . . . . . . . . . . . . . . . . . . . . Overflow Damage 2459 | . . 35 87 662 70 66 102 49 44 95 . . . 85 . 106 49 325 . 176 . 508 Projectiles 15 | . . . 15 . . . . . . . . . . . . . . . . . . . Explosions 685 | . . 35 72 . . 66 39 49 . 25 . . . . . . . . . 152 . 247 Melee 1759 | . . . . 662 70 . 63 . 44 70 . . . 85 . 106 49 325 . 24 . 261 Knockbacks 29 | . 1 1 4 20 . . 2 . . 1 . . . . . . . . . . . . Impact 16 | . 1 . 3 9 . . 2 . . 1 . . . . . . . . . . . . Kinetic 11 | . . 1 1 9 . . . . . . . . . . . . . . . . . . Secondary 2 | . . . . 2 . . . . . . . . . . . . . . . . . . Self-Inflicted Damage 595 | . 20 48 75 . . . 41 152 . . . . . . . 33 . . . 46 . 180 Shots 16 | . 1 1 3 . . . 1 4 . . . . . . . 2 . . . 1 . 3 Rammed 22 | . 1 1 3 2 . . 5 2 6 1 . . . . . . . . . . . 1 Targets Rammed 27 | . 2 4 3 3 . . 5 2 6 1 . . . . . . . . . . . 1 Kicked . | . . . . . . . . . . . . . . . . . . . . . . . Crushed 5 | . 1 3 . 1 . . . . . . . . . . . . . . . . . . Highest Temperature 278 | . 267 39 153 231 29 120 40 278 252 181 20 4 . 1 . 154 . 1 . 262 . 152 Average Temperature 55 | . 89 15 38 57 15 24 9 76 98 60 9 4 . 1 . 62 . 1 . 52 . 41 Received Heat Transfer 3221 | . 216 60 228 411 135 236 775 217 216 121 108 18 . 6 . 165 . . 9 42 . 258 Effects 5 | . 3 . . . . . . . . . . . . . . . . . . 2 . . Energy Bleed 1 | . 1 . . . . . . . . . . . . . . . . . . . . . Interference 4 | . 2 . . . . . . . . . . . . . . . . . . 2 . . Siege Activations . | . . . . . . . . . . . . . . . . . . . . . . . Martial Activations . | . . . . . . . . . . . . . . . . . . . . . . . Shielding Activations . | . . . . . . . . . . . . . . . . . . . . . . . Robots Disrupted . | . . . . . . . . . . . . . . . . . . . . . . . Combat Hostiles . | . . . . . . . . . . . . . . . . . . . . . . . Robots Corrupted 9 | . 1 . . 7 . . 1 . . . . . . . . . . . . . . . Combat Hostiles 2 | . . . . 1 . . 1 . . . . . . . . . . . . . . . Parts Fried 18 | . 7 . . 7 1 . 1 . 1 1 . . . . . . . . . . . . Impact Corruptions 24 | . . . . 18 3 . 1 . 1 1 . . . . . . . . . . . . Robots Melted 1 | . . . . . . . . . . . . . . . . 1 . . . . . . Combat Hostiles 1 | . . . . . . . . . . . . . . . . 1 . . . . . . Parts Melted 3 | . . . . . . . . . . . . . . . . 2 . . . . . 1 Heat Transferred 1883 | . 350 . 50 . . . . . . . . . . . . 333 . . . . . 1150 Parts Sabotaged . | . . . . . . . . . . . . . . . . . . . . . . . Parts Stolen . | . . . . . . . . . . . . . . . . . . . . . . . Parts Stripped . | . . . . . . . . . . . . . . . . . . . . . . . Power Chain Reactions 4 | . 3 . . . . . . . . . . . . . . 1 . . . . . . Alert | -11 -10 -10 -9 -9 -8 -8 -8 -8 -8 -7 -7 -7 -7 -6 -6 -6 -6 -6 -6 -5 -5 -5 ------- Run | Yrd Mat Min Mat Sto Mat Gar Mat Gar Mat Fac Low Low Dat Pro Fac Ext Cet Arc Hub Fac Was Fac Maximum Alert Level 3 | . . . 2 1 . 3 2 2 1 . . . . . 1 3 2 1 1 2 . 3 Low Security (%) 57 | 100 100 100 36 68 100 11 70 65 97 100 . . . . 65 6 . 79 26 16 100 49 Level 1 22 | . . . 16 31 . 49 26 24 2 . . . . . 34 14 . 20 73 40 . 8 Level 2 17 | . . . 46 . . 35 3 9 . . . . . . . 56 100 . . 42 . 24 Level 3 2 | . . . . . . 4 . . . . . . . . . 21 . . . . . 17 Level 4 . | . . . . . . . . . . . . . . . . . . . . . . . Level 5 . | . . . . . . . . . . . . . . . . . . . . . . . High Security . | . . . . . . . . . . . . . . . . . . . . . . . Max Security . | . . . . . . . . . . . . . . . . . . . . . . . Peak Influence 880 | 10 161 163 608 262 126 709 437 414 201 93 . . . . 338 880 590 336 350 520 110 764 Initial 476 | . . . 49 248 90 55 345 . 201 3 . . . . 300 109 476 208 . 133 108 50 Average 214 | . 68 56 298 160 80 373 167 165 65 25 . . . . 199 523 515 127 213 343 101 325 Influence Increases 11412 | 15 353 415 1125 901 360 824 921 454 266 231 70 75 . 30 514 1497 374 258 739 905 4 1081 Destroy 0b10 Robot/C 5060 | . 200 240 580 520 180 460 540 280 140 80 40 . . . 20 620 160 80 280 360 . 280 Destroy 0b10 Robot/NC 585 | 15 30 20 65 95 20 5 80 . 10 20 5 . . 15 5 40 10 40 40 5 . 65 Destroy Leader 946 | . 54 50 178 150 44 20 150 10 52 2 10 . . . 12 56 . . 84 40 . 34 Allied During Kill 1179 | . . 22 19 . 77 31 . . 4 . . . . . . 347 170 120 307 82 . . Trap Triggered on 0b10 110 | . . . . . . . 30 . . . . . . . . 50 . . . 30 . . Successful Hack 386 | . 13 . 49 14 9 44 22 . 14 24 . . . . 51 78 8 . 10 39 . 11 Select Force Hacks 120 | . . . 30 30 . . . . . 60 . . . . . . . . . . . . Disable Machine 615 | . 30 30 75 60 30 . 30 . 15 . . . . . 15 30 . . . 90 . 210 Anti-Garrison Action 200 | . . . . . . 200 . . . . . . . . . . . . . . . . Destroy Structure 1026 | . 11 38 84 32 . 49 69 74 1 15 . . . . 6 96 26 3 18 244 4 256 Advance Influence 300 | . . . . . . . . . . . . . . . 300 . . . . . . . Partial Spotted 225 | . . . 30 . . 15 . 30 . . . . . . 15 90 . 15 . . . 30 Lose Combat Pursuer 660 | . 15 15 15 . . . . 60 30 30 15 75 . 15 90 90 . . . 15 . 195 Influence Decreases 10697 | 15 353 288 663 1275 489 201 1630 40 671 167 143 60 15 30 290 871 704 778 466 868 242 438 Entered New Map 2366 | . . . 78 341 125 31 364 . 213 6 28 . 15 . . 115 374 312 . 140 202 22 Time Decay 5245 | 15 343 288 530 687 144 . 591 . 378 151 86 60 . 30 130 446 190 256 336 318 20 246 Lost Part 450 | . 10 . . 20 . 10 60 30 40 10 . . . . . 30 . . . 70 . 170 Lost Ally 1128 | . . . 55 . 114 160 40 10 40 . 29 . . . 10 280 140 60 130 40 20 . Purge Threat 1508 | . . . . 227 106 . 575 . . . . . . . 150 . . 150 . 300 . . Squads Dispatched 54 | . 3 . 5 3 6 . 6 . 1 5 . . . . . 3 . . 7 7 . 8 Investigation 25 | . 3 . 3 2 2 . 3 . . 2 . . . . . 2 . . 1 5 . 2 Extermination 4 | . . . . . . . . . . 1 . . . . . . . . 2 1 . . Reinforcement 19 | . . . 1 1 1 . 3 . 1 2 . . . . . . . . 4 . . 6 Assault 2 | . . . 1 . . . . . . . . . . . . 1 . . . . . . Garrison 4 | . . . . . 3 . . . . . . . . . . . . . . 1 . . Intercept . | . . . . . . . . . . . . . . . . . . . . . . . Searches Triggered . | . . . . . . . . . . . . . . . . . . . . . . . Construction Impeded 4 | . . . . . . . . . . 1 . . . . . . . . 1 . . 2 Haulers Reinforced 4 | . . . . . . . . . . 1 . . . . . . . . 1 . . 2 Active Scanning Responses . | . . . . . . . . . . . . . . . . . . . . . . . Cargo Convoy Interrupts . | . . . . . . . . . . . . . . . . . . . . . . . Stealth | -11 -10 -10 -9 -9 -8 -8 -8 -8 -8 -7 -7 -7 -7 -6 -6 -6 -6 -6 -6 -5 -5 -5 --------- Run | Yrd Mat Min Mat Sto Mat Gar Mat Gar Mat Fac Low Low Dat Pro Fac Ext Cet Arc Hub Fac Was Fac Distress Signals 30 | . 2 . 5 3 3 1 4 . 2 . . . . . . 3 2 1 1 1 . 2 Communications Jammed . | . . . . . . . . . . . . . . . . . . . . . . . Distress Signals . | . . . . . . . . . . . . . . . . . . . . . . . Times Spotted 363 | . 15 14 41 38 11 22 38 14 19 6 6 5 2 3 7 37 10 5 9 20 4 37 Peak Tracking Total 9 | . 4 3 7 3 3 8 6 8 7 3 3 4 2 2 5 8 5 1 3 5 4 9 Tactical Retreats 25 | . 1 1 1 . . . . 1 2 2 1 3 . 1 3 3 . . . 1 . 5 Traps | -11 -10 -10 -9 -9 -8 -8 -8 -8 -8 -7 -7 -7 -7 -6 -6 -6 -6 -6 -6 -5 -5 -5 ------- Run | Yrd Mat Min Mat Sto Mat Gar Mat Gar Mat Fac Low Low Dat Pro Fac Ext Cet Arc Hub Fac Was Fac Traps Triggered 16 | . . . . 1 . 3 1 1 1 3 . . . . . 4 . . . 2 . . Indirectly . | . . . . . . . . . . . . . . . . . . . . . . . Trap Hack Attempts 51 | . . . . 17 19 . 15 . . . . . . . . . . . . . . . Triggered . | . . . . . . . . . . . . . . . . . . . . . . . Disarmed 9 | . 6 . . . 3 . . . . . . . . . . . . . . . . . Reprogrammed 25 | . . . . 3 . . 10 . . . . . . . . . . . . 12 . . Reused 11 | . . . . . . . 3 . . . . . . . . 5 . . . 3 . . Traps Extracted . | . . . . . . . . . . . . . . . . . . . . . . . Installed 5 | . . . . . . . . . . . . . . . . 5 . . . . . . Triggered 11 | . . . . . . . 3 . . . . . . . . 5 . . . 3 . . Most Traps Carried 5 | . . . . . . . . . . . . . . 5 5 5 . . . . . . Machines | -11 -10 -10 -9 -9 -8 -8 -8 -8 -8 -7 -7 -7 -7 -6 -6 -6 -6 -6 -6 -5 -5 -5 ---------- Run | Yrd Mat Min Mat Sto Mat Gar Mat Gar Mat Fac Low Low Dat Pro Fac Ext Cet Arc Hub Fac Was Fac Machines Disabled 45 | . 2 2 5 4 2 1 2 . 1 . . . 1 . 1 4 . . . 6 . 14 Max in Single Turn 11 | . 1 2 3 1 1 1 2 . 1 . . . 1 . 1 2 . . . . . 11 Garrison Access 8 | . . . . . . . . . . 1 . . . . 2 . . . . 4 . 1 Garrison Relay 1 | . . . . . . 1 . . . . . . . . . . . . . . . . Network Hub 1 | . . . . . . . . . . . . . . . . . . . 1 . . . Machines Repaired . | . . . . . . . . . . . . . . . . . . . . . . . Machines Dismantled . | . . . . . . . . . . . . . . . . . . . . . . . Machines Sabotaged . | . . . . . . . . . . . . . . . . . . . . . . . Overloaded Fab Kills . | . . . . . . . . . . . . . . . . . . . . . . . Hacking | -11 -10 -10 -9 -9 -8 -8 -8 -8 -8 -7 -7 -7 -7 -6 -6 -6 -6 -6 -6 -5 -5 -5 --------- Run | Yrd Mat Min Mat Sto Mat Gar Mat Gar Mat Fac Low Low Dat Pro Fac Ext Cet Arc Hub Fac Was Fac Machines Accessed 112 | . 6 . 8 15 3 2 9 . 3 7 . . 3 . 12 15 1 . 2 18 . 8 Terminals 67 | . 4 . 4 11 2 2 5 . 2 3 . . . . 6 14 1 . 2 8 . 3 Fabricators 7 | . . . . . . . . . . 1 . . . . 1 . . . . 3 . 2 Repair Stations 10 | . 1 . 2 2 . . 1 . . . . . . . 1 1 . . . 2 . . Recycling Units 9 | . 1 . 1 2 . . 1 . . 2 . . . . 1 . . . . . . 1 Scanalyzers 6 | . . . 1 . . . 1 . 1 . . . . . 1 . . . . 1 . 1 Garrison Access 10 | . . . . . 1 . 1 . . 1 . . . . 2 . . . . 4 . 1 Total Hacks 378 | . 21 . 38 43 10 7 34 . 12 15 . . 25 . 31 33 4 . 3 64 . 38 Successful 248 | . 7 . 32 26 7 4 28 . 7 10 . . 25 . 23 18 1 . 3 35 . 22 Failed 125 | . 13 . 5 16 3 3 5 . 4 5 . . . . 8 15 3 . . 29 . 16 Catastrophic 16 | . . . 1 1 . . 1 . 1 1 . . . . 1 3 1 . . 3 . 3 Database Lockouts 5 | . 1 . 1 1 . . 1 . 1 . . . . . . . . . . . . . Manual 132 | . 11 . 6 11 7 6 10 . 3 6 . . . . 13 7 1 . 2 28 . 21 Terminals 207 | . 16 . 14 29 7 7 14 . 6 7 . . . . 15 29 4 . 3 40 . 16 Fabricators 29 | . . . . . . . . . . 2 . . . . 6 . . . . 5 . 16 Repair Stations 46 | . 2 . 17 10 . . 6 . . . . . . . 2 4 . . . 5 . . Recycling Units 20 | . 3 . 2 4 . . 2 . . 4 . . . . 3 . . . . . . 2 Scanalyzers 29 | . . . 5 . . . 9 . 6 . . . . . 1 . . . . 6 . 2 Garrison Access 22 | . . . . . 3 . 3 . . 2 . . . . 4 . . . . 8 . 2 Terminal Hacks 111 | . 5 . 10 10 5 4 8 . 3 2 . . 25 . 5 10 1 . 1 14 . 8 Record 6 | . . . . . . . . . . . . . 6 . . . . . . . . . Part Schematic 12 | . . . . . . . . . . 1 . . 10 . 1 . . . . . . . Robot Schematic 6 | . . . . . . . . . . . . . 6 . . . . . . . . . Robot Analysis 9 | . 2 . 1 . 3 . 1 . 1 . . . . . . 1 . . . . . . Prototype ID Bank 10 | . . . 3 1 . . 1 . . . . . 3 . 1 . . . . 1 . . Open Door 13 | . . . . 4 . . . . . . . . . . 1 7 1 . . . . . Level Access Points 3 | . . . . . . . . . 1 . . . . . . . . . 1 . . 1 Branch Access Points 1 | . . . . . . . . . . . . . . . . . . . . 1 . . Emergency Access Points 1 | . . . . . . . . . . . . . . . . . . . . 1 . . Machine Index 2 | . . . 1 . . . . . . . . . . . . . . . . . . 1 Terminal Index 1 | . . . . . . . . . . . . . . . . . . . . . . 1 Repair Station Index 1 | . . . 1 . . . . . . . . . . . . . . . . . . . Scanalyzer Index 2 | . . . . . . . 1 . 1 . . . . . . . . . . . . . Unreport Threat 9 | . . . . 2 2 . 2 . . . . . . . 1 . . . . 2 . . Locate Traps 12 | . 1 . . 2 . . 2 . . 1 . . . . 1 2 . . . 2 . 1 Disarm Traps 1 | . 1 . . . . . . . . . . . . . . . . . . . . . Reprogram Traps 3 | . . . . . . . 1 . . . . . . . . . . . . 2 . . Transport Status 2 | . . . 1 . . . . . . . . . . . . . . . . . . 1 Recall Investigation 1 | . . . . . . . . . . . . . . . . . . . . . . 1 Recall Reinforcements 1 | . . . . . . . . . . . . . . . . . . . . . . 1 Hauler Manifests 2 | . . . 1 . . . . . . . . . . . . . . . . . . 1 Registered Components 3 | . . . 1 1 . . . . . . . . . . . . . . . 1 . . Zone Layout 6 | . 1 . 1 . . . . . . . . . . . . . . . . 4 . . Garrison Registry 1 | . . . . . . 1 . . . . . . . . . . . . . . . . Patrol Navigation 1 | . . . . . . 1 . . . . . . . . . . . . . . . . Security Stations 2 | . . . . . . 2 . . . . . . . . . . . . . . . . Fabricator Hacks 9 | . . . . . . . . . . 1 . . . . 3 . . . . 1 . 4 Network Status 4 | . . . . . . . . . . 1 . . . . 1 . . . . 1 . 1 Load Schematic 3 | . . . . . . . . . . . . . . . 1 . . . . . . 2 Build 2 | . . . . . . . . . . . . . . . 1 . . . . . . 1 Repair Station Hacks 43 | . 2 . 14 10 . . 6 . . . . . . . 2 4 . . . 5 . . Scan Component 21 | . 1 . 7 5 . . 3 . . . . . . . 1 2 . . . 2 . . Repair 21 | . 1 . 7 5 . . 3 . . . . . . . 1 2 . . . 2 . . Refit 1 | . . . . . . . . . . . . . . . . . . . . 1 . . Recycling Unit Hacks 7 | . . . 1 1 . . 1 . . 2 . . . . 1 . . . . . . 1 Retrieve Components 7 | . . . 1 1 . . 1 . . 2 . . . . 1 . . . . . . 1 Scanalyzer 22 | . . . 4 . . . 9 . 4 . . . . . 1 . . . . 3 . 1 Insert Component 7 | . . . 2 . . . 3 . . . . . . . . . . . . 1 . 1 Analyze 9 | . . . 2 . . . 6 . . . . . . . . . . . . 1 . . Retrieve Study 6 | . . . . . . . . . 4 . . . . . 1 . . . . 1 . . Garrison Access Hacks 19 | . . . . . 1 . 2 . . 2 . . . . 4 . . . . 8 . 2 Unlock Access 2 | . . . . . 1 . 1 . . . . . . . . . . . . . . . Seal Access 8 | . . . . . . . . . . 1 . . . . 2 . . . . 4 . 1 Coupler Status 9 | . . . . . . . 1 . . 1 . . . . 2 . . . . 4 . 1 Unauthorized Hacks 37 | . . . 3 5 1 . 2 . . 3 . . . . 7 4 . . 2 4 . 6 Terminals 21 | . . . 1 4 . . 1 . . 1 . . . . 4 4 . . 2 2 . 2 Track 2 | . . . . . . . . . . . . . . . 1 . . . . 1 . . Assimilate 4 | . . . . 2 . . . . . . . . . . 1 1 . . . . . . Botnet 10 | . . . 1 1 . . 1 . . 1 . . . . 1 1 . . 1 1 . 2 Disrupt 3 | . . . . . . . . . . . . . . . 1 2 . . . . . . Operators 1 | . . . . 1 . . . . . . . . . . . . . . . . . . Sabotage 1 | . . . . . . . . . . . . . . . . . . . 1 . . . Fabricators 7 | . . . . . . . . . . . . . . . 2 . . . . 2 . 3 Prioritize 3 | . . . . . . . . . . . . . . . 1 . . . . . . 2 Liberate 3 | . . . . . . . . . . . . . . . . . . . . 2 . 1 Haulers 1 | . . . . . . . . . . . . . . . 1 . . . . . . . Repair Stations 1 | . . . 1 . . . . . . . . . . . . . . . . . . . Mechanics 1 | . . . 1 . . . . . . . . . . . . . . . . . . . Recycling Units 6 | . . . 1 1 . . . . . 2 . . . . 1 . . . . . . 1 Reject 2 | . . . . . . . . . . . . . . . 1 . . . . . . 1 Tunnel 4 | . . . 1 1 . . . . . 2 . . . . . . . . . . . . Scanalyzers . | . . . . . . . . . . . . . . . . . . . . . . . Garrison Access 2 | . . . . . 1 . 1 . . . . . . . . . . . . . . . Reprogram 2 | . . . . . 1 . 1 . . . . . . . . . . . . . . . Data Cores Recovered 2 | . . . . 1 . . . . . . . . . . . 1 . . . . . . Used 1 | . . . . . . . . . . . . . . . . 1 . . . . . . Hacking Detections 73 | . 6 . 7 11 3 2 8 . 2 5 . . . . 6 8 1 . 1 8 . 5 Full Trace Events 18 | . 3 . 3 2 1 1 2 . . . . . . . . 2 . . . 2 . 2 Feedback Events 2 | . . . . . . . . . . . . . . . . 1 . . . 1 . . Corruption 1 | . . . . . . . . . . . . . . . . . . . . 1 . . Hackware Fried 1 | . . . . . . . . . . . . . . . . 1 . . . . . . Feedback Blocked . | . . . . . . . . . . . . . . . . . . . . . . . Robot Schematics Acquired 6 | . . . . . . . . . . . . . 6 . . . . . . . . . Robots Built . | . . . . . . . . . . . . . . . . . . . . . . . Authchips . | . . . . . . . . . . . . . . . . . . . . . . . Time . | . . . . . . . . . . . . . . . . . . . . . . . Total Robot Build Rating . | . . . . . . . . . . . . . . . . . . . . . . . Part Schematics Acquired 18 | . . . 2 . . . 3 . . 1 . . 10 . 1 . . . . 1 . . Parts Built 2 | . . . . . . . . . . . . . . . 1 . . . . . . 1 Authchips 1 | . . . . . . . . . . . . . . . 1 . . . . . . . Time 152 | . . . . . . . . . . . . . . . 76 . . . . . . 76 Total Part Build Rating 10 | . . . . . . . . . . . . . . . 5 . . . . . . 5 Part Studies Acquired 6 | . . . . . . . . . 4 . . . . . 1 . . . . 1 . . Parts Repaired 21 | . 1 . 7 5 . . 3 . . . . . . . 1 2 . . . 2 . . Time 710 | . 26 . 194 155 . . 153 . . . . . . . 50 89 . . . 43 . . Parts Recycled . | . . . . . . . . . . . . . . . . . . . . . . . Recycled Matter . | . . . . . . . . . . . . . . . . . . . . . . . Retrieved Matter . | . . . . . . . . . . . . . . . . . . . . . . . Retrieved Components 32 | . . . 10 1 . . 8 . . 10 . . . . . . . . . . . 3 Parts Scanalyzed 6 | . . . 2 . . . 3 . . . . . . . . . . . . 1 . . Part Schematics Acquired 6 | . . . 2 . . . 3 . . . . . . . . . . . . 1 . . Parts Damaged 2 | . . . 1 . . . 1 . . . . . . . . . . . . . . . Bothacking | -11 -10 -10 -9 -9 -8 -8 -8 -8 -8 -7 -7 -7 -7 -6 -6 -6 -6 -6 -6 -5 -5 -5 ------------ Run | Yrd Mat Min Mat Sto Mat Gar Mat Gar Mat Fac Low Low Dat Pro Fac Ext Cet Arc Hub Fac Was Fac Used RIF Installer 3 | . . . . . . 2 . 1 . . . . . . . . . . . . . . Signal Jammer 1 | . . . . . . . . 1 . . . . . . . . . . . . . . Program Shield 1 | . . . . . . 1 . . . . . . . . . . . . . . . . Robots Hacked 16 | . . . . . . . 1 . 3 . 3 . 1 . 1 1 1 3 . 2 . . Non-combat 5 | . . . . . . . 1 . . . . . . . . . . 3 . 1 . . Combat 11 | . . . . . . . . . 3 . 3 . 1 . 1 1 1 . . 1 . . Robot Hacks Applied 18 | . . . . . . . 2 . 4 . 3 . 1 . 1 1 1 3 . 2 . . parse_system 4 | . . . . . . . . . . . . . 1 . . 1 1 1 . . . . find_chute 1 | . . . . . . . . . . . . . . . . . . . . 1 . . purge_threat 3 | . . . . . . . 2 . . . . . . . . . . 1 . . . . reboot_system 1 | . . . . . . . . . . . . . . . 1 . . . . . . . overwrite_iff 5 | . . . . . . . . . 3 . 2 . . . . . . . . . . . formatsys_low 1 | . . . . . . . . . . . . . . . . . . 1 . . . . formatsys_high 3 | . . . . . . . . . 1 . 1 . . . . . . . . 1 . . Relay Couplers Released 11 | . . . . . . 3 . . . 3 . . . . 2 . . . . 3 . . Machine Destruction 11 | . . . . . . 3 . . . 3 . . . . 2 . . . . 3 . . Attached 8 | . . . . . . . 1 . 2 . 2 . . . 1 1 . . . 1 . . Fabnet Peak Effective % . | . . . . . . . . . . . . . . . . . . . . . . . Robots Rewired 25 | . . . . . . 3 . . . . . . . . . 22 . . . . . . Allies Hacked . | . . . . . . . . . . . . . . . . . . . . . . . Hacks Repelled . | . . . . . . . . . . . . . . . . . . . . . . . Allies | -11 -10 -10 -9 -9 -8 -8 -8 -8 -8 -7 -7 -7 -7 -6 -6 -6 -6 -6 -6 -5 -5 -5 -------- Run | Yrd Mat Min Mat Sto Mat Gar Mat Gar Mat Fac Low Low Dat Pro Fac Ext Cet Arc Hub Fac Was Fac Total Allies 70 | . . 3 . 11 1 3 2 . 3 . 3 . . . 1 35 5 1 . 1 1 . Largest Group 19 | . . 3 3 11 11 6 3 1 1 1 1 . . . 1 19 18 14 12 4 1 . Highest-Rated Group 968 | . . 40 40 98 98 88 42 10 16 15 16 . . . 26 710 968 745 720 375 31 . Highest-Rated Ally 159 | . . 16 16 16 16 18 16 10 16 15 16 . . . 26 159 159 96 96 96 31 . Total Orders 37 | . . . . 4 . 6 2 1 . . . . . . 2 6 2 . 12 2 . . STAY 19 | . . . . 2 . 3 1 1 . . . . . . 1 2 1 . 7 1 . . FOLLOW 18 | . . . . 2 . 3 1 . . . . . . . 1 4 1 . 5 1 . . Ally Attacks 568 | . . . 46 1 85 36 14 . 13 . 8 . . . . 151 68 24 74 39 9 . Total Damage 11900 | . . . 418 11 729 443 176 . 308 . 86 . . . . 2607 1634 611 2279 2446 152 . Kills 99 | . . . 5 . 9 7 2 . 2 . . . . . . 22 11 4 22 15 . . Allies Corrupted 1 | . . . . . . . . . . 1 . . . . . . . . . . . . Allies Melted . | . . . . . . . . . . . . . . . . . . . . . . . Intel | -11 -10 -10 -9 -9 -8 -8 -8 -8 -8 -7 -7 -7 -7 -6 -6 -6 -6 -6 -6 -5 -5 -5 ------- Run | Yrd Mat Min Mat Sto Mat Gar Mat Gar Mat Fac Low Low Dat Pro Fac Ext Cet Arc Hub Fac Was Fac Active Infowar (turns) 6178 | . . . 724 . . . . . . 563 552 238 113 130 266 895 127 586 809 699 49 427 Optics 2697 | . . . . . . . . . . . . . . . . . 127 586 809 699 49 427 Sensors 2742 | . . . . . . . . . . 563 552 238 113 130 195 148 . . . 553 . 250 Seismic 724 | . . . 724 . . . . . . . . . . . . . . . . . . . Machine Analysis 1112 | . . . . . . . . . . . . . . . 217 895 . . . . . . Robot Analysis Total 9 | . 2 . 1 . 3 . 1 . 1 . . . . . . 1 . . . . . . Derelict Logs Recovered 5 | . . 2 . . . . . . . . 2 1 . . . . . . . . . . Drone Launches . | . . . . . . . . . . . . . . . . . . . . . . . Drone Recoveries . | . . . . . . . . . . . . . . . . . . . . . . . Exploration | -11 -10 -10 -9 -9 -8 -8 -8 -8 -8 -7 -7 -7 -7 -6 -6 -6 -6 -6 -6 -5 -5 -5 ------------- Run | Yrd Mat Min Mat Sto Mat Gar Mat Gar Mat Fac Low Low Dat Pro Fac Ext Cet Arc Hub Fac Was Fac Turns Passed 20184 | 139 919 992 2846 3435 318 1257 2040 786 903 904 696 238 113 149 266 1107 398 586 809 711 49 523 Spaces Moved 12824 | 65 457 583 995 1137 91 406 725 264 318 406 654 731 168 272 548 1463 256 326 516 1332 136 975 Core 37 | 2 . . . . . . . . . . . . . . . . . . . . . 35 Treads 5502 | 63 457 583 995 1137 91 406 563 264 318 406 219 . . . . . . . . . . . Legs . | . . . . . . . . . . . . . . . . . . . . . . . Wheels 162 | . . . . . . . 162 . . . . . . . . . . . . . . . Hover . | . . . . . . . . . . . . . . . . . . . . . . . Flight 7123 | . . . . . . . . . . . 435 731 168 272 548 1463 256 326 516 1332 136 940 Fastest Speed 23 | 50 160 160 160 240 240 240 125 236 200 200 29 29 29 29 26 26 26 26 26 23 30 27 Average Speed 110 | 156 160 160 233 240 240 240 213 236 225 200 89 29 29 29 26 26 29 26 26 27 30 35 Slowest Speed 480 | 160 160 160 240 240 240 240 480 240 240 206 311 29 29 29 26 26 98 26 26 99 30 150 Overloaded Moves . | . . . . . . . . . . . . . . . . . . . . . . . Propulsion Burnouts . | . . . . . . . . . . . . . . . . . . . . . . . Robots Hopped 31 | . . . . . . . . . . . . 3 . . 3 12 . . . 1 4 8 Potential Cave-ins 10 | . . . . . . . . . . . . . . . . 8 . . . 2 . . Cave-ins Triggered . | . . . . . . . . . . . . . . . . . . . . . . . Exploration Rate (%) 53 | 6 67 98 77 94 15 47 54 24 30 11 81 78 80 43 13 63 66 100 27 40 90 28 Regions Visited 22 Branch Regions 10 Pre-discovered Areas 9 | . . 2 1 2 . . . . . 2 1 . 1 . . . . . . . . . Known Exits Taken 14 | . . . 1 . 1 . 1 . 1 1 1 1 1 1 1 1 1 1 1 . . . Unknown Exits Taken 4 | 1 1 1 . 1 . . . . . . . . . . . . . . . . . . Scrap Searched 7 | . . 1 . . . . . . . . 2 3 . 1 . . . . . . . . Spaces Dug 66 | . . . . 2 . 7 1 3 . . 2 3 . 2 6 2 . . . 22 2 14 Terrain Destroyed 840 | . 10 51 95 26 . 54 79 97 . 15 3 3 . 12 6 121 27 . . 79 2 160 Melee 55 | . . . . 2 . 7 1 3 . . 2 3 . 2 6 . . . . 18 2 9 Projectile 35 | . . . 4 2 . . . . . . 1 . . . . 12 . . . 10 . 6 AOE 750 | . 10 51 91 22 . 47 78 94 . 15 . . . 10 . 109 27 . . 51 . 145 Terrain Rammed . | . . . . . . . . . . . . . . . . . . . . . . . Walls Destroyed . | . . . . . . . . . . . . . . . . . . . . . . . Machines Disabled . | . . . . . . . . . . . . . . . . . . . . . . . Actions | -11 -10 -10 -9 -9 -8 -8 -8 -8 -8 -7 -7 -7 -7 -6 -6 -6 -6 -6 -6 -5 -5 -5 --------- Run | Yrd Mat Min Mat Sto Mat Gar Mat Gar Mat Fac Low Low Dat Pro Fac Ext Cet Arc Hub Fac Was Fac Total 17560 | 89 571 617 1381 1629 147 614 1041 355 455 466 744 750 207 330 653 2109 551 810 1187 1626 137 1091 Wait 3196 | 4 46 5 229 283 6 121 130 25 73 2 34 20 15 31 80 464 252 460 667 202 4 43 Move 12745 | 64 456 582 994 1136 91 405 724 263 317 405 653 724 167 271 541 1439 255 325 515 1330 129 959 Hop 28 | . . . . . . . . . . . . 3 . . 3 11 . . . 1 2 8 Pick Up 135 | 4 15 2 29 11 3 7 12 3 7 7 3 . . 5 5 6 3 . . 11 . 2 Fast Attach 79 | 6 5 . 6 10 . 2 13 1 3 4 1 . . 4 1 6 1 2 1 6 . 7 Attach 49 | . 1 . 5 4 2 2 4 2 3 3 2 . . 1 4 4 3 . . 3 . 6 Detach 23 | . 1 . . 2 . . 2 . 2 3 1 . . 1 . 3 2 1 . 1 . 4 Swap 221 | 2 1 7 15 24 4 17 25 15 14 15 18 . . 1 3 23 6 1 . 18 . 12 Drop 152 | . 7 2 25 25 1 8 20 5 6 9 18 . . 5 1 5 4 1 1 8 . 1 Fire 491 | 9 37 15 75 88 19 32 84 31 17 12 6 . . 1 . 30 3 . . 16 . 16 Melee 303 | . . . . 26 2 15 7 8 6 4 7 3 25 10 15 67 22 19 3 30 2 32 Ram 1 | . . . . . . . . . . . . . . . . . . . . . . 1 Kick . | . . . . . . . . . . . . . . . . . . . . . . . Crush 26 | . 2 4 3 3 . . 5 2 6 1 . . . . . . . . . . . . Escape Stasis 51 | . . . . . . 5 . . . 1 . . . . . 45 . . . . . . Rewire 4 | . . . . . . . . . 1 . 1 . . . . 1 . 1 . . . . Trap 56 | . . . . 17 19 . 15 . . . . . . . . 5 . . . . . . Miscellaneous . | . . . . . . . . . . . . . . . . . . . . . . . Route ------- -11/Scrapyard -10/Materials (discovered 3 exits: *Mat x2 / [*Min]) -10/Mines (discovered 3 exits: *Mat x2 / [*Sub]) -9/Materials (discovered 5 exits: *Mat x3 / *Sto x2) -9/Storage -8/Materials -8/Garrison (discovered 3 exits: *Mat x3) -8/Materials (discovered 2 exits: *Fac / Gar) -8/Garrison -8/Materials (discovered 3 exits: *Fac x3) -7/Factory -7/Lower Caves -7/Lower Caves (discovered 2 exits: *Fac / *Dat) -7/Data Miner -6/Proximity Caves -6/Factory -6/Extension (discovered 2 exits: *Fac / *Cet) -6/Cetus (discovered 2 exits: *Fac / *Arc) -6/Archives (discovered 3 exits: *Fac / *Hub x2) -6/Hub_04(d) (discovered 2 exits: *Fac x2) -5/Factory (discovered 2 exits: *Upp x2) -5/Waste -5/Factory (discovered 4 exits: *Fac x4) History --------- Turn | Location | Event 17 | -11/Scrapyard | Discovered new exit (range 15) 140 | -11/Scrapyard | Entered Materials 177 | -10/Materials | Central database locked down 307 | -10/Materials | Build established: Mutant 379 | -10/Materials | Discovered new exit (range 16) 620 | -10/Materials | Repaired Lgt. Armor Plating 682 | -10/Materials | Discovered new exit (range 7) 799 | -10/Materials | Discovered new exit (range 3) 1059 | -10/Materials | Entered Mines 1112 | -10/Mines | Met a Derelict bent on vengeance 1259 | -10/Mines | Discovered new exit (range 7) 1474 | -10/Mines | Assisted by bots powering up and referring to "LRC-V3" 1516 | -10/Mines | Discovered new exit (range 5) 1517 | -10/Mines | Learned location of Storage (-9) 1634 | -10/Mines | Discovered new exit (range 8) 2051 | -10/Mines | Entered Materials 2051 | -9/Materials | Accompanied by 3 allies 2051 | -9/Materials | Evolved 2 slots: Propulsion x1, Utility x1 2052 | -9/Materials | Identified exit to Storage 2052 | -9/Materials | Discovered exit to Storage (range 8) 2777 | -9/Materials | Central database locked down 2874 | -9/Materials | Discovered new exit (range 5) 3430 | -9/Materials | Discovered new exit (range 12) 3537 | -9/Materials | Build established: Scavenger-Mutant 3679 | -9/Materials | Repaired Lgt. Treads 3706 | -9/Materials | Repaired Lgt. Cannon 3733 | -9/Materials | Repaired Lgt. Cannon 3766 | -9/Materials | Repaired Hrd. Light Armor Plating 3866 | -9/Materials | Repaired Lgt. Treads 3893 | -9/Materials | Repaired Lgt. Treads 3945 | -9/Materials | Build established: Mutant 3979 | -9/Materials | Discovered new exit (range 3) 4403 | -9/Materials | Repaired Hrd. Light Armor Plating 4851 | -9/Materials | First assault squad dispatched 4897 | -9/Materials | Entered Storage 5293 | -9/Storage | Repaired Lgt. Treads 5331 | -9/Storage | Repaired Lgt. Treads 5414 | -9/Storage | Repaired Lgt. Treads 5554 | -9/Storage | Learned location of Armory (-3) 5609 | -9/Storage | Discovered new exit (range 16) 6832 | -9/Storage | Build established: Scavenger-Mutant 7279 | -9/Storage | Repaired Lgt. Treads 7331 | -9/Storage | Repaired Hvy. Ion Engine 7665 | -9/Storage | Build established: Mutant 7953 | -9/Storage | Assisted by bots powering up and referring to "LRC-V3" 7955 | -9/Storage | Central database locked down 8245 | -9/Storage | Build established: Commander-Mutant 8332 | -9/Storage | Entered Materials 8332 | -8/Materials | Accompanied by 11 allies 8332 | -8/Materials | Evolved 2 slots: Propulsion x1, Utility x1 8450 | -8/Materials | Garrison activated, responded to threat 8646 | -8/Materials | Identified exit to Garrison 8650 | -8/Materials | Entered Garrison 8650 | -8/Garrison | Accompanied by 6 allies 8678 | -8/Garrison | Triggered checkpoint 8734 | -8/Garrison | Triggered checkpoint 8767 | -8/Garrison | Garrison Relay disabled 8790 | -8/Garrison | Discovered new exit (range 53) 8790 | -8/Garrison | Discovered new exit (range 80) 8790 | -8/Garrison | Discovered new exit (range 67) 8790 | -8/Garrison | Learned Materials security intel 9226 | -8/Garrison | Installed Relay Interface Framework 9401 | -8/Garrison | Lost 4 allies 9435 | -8/Garrison | Triggered checkpoint 9463 | -8/Garrison | Triggered checkpoint 9650 | -8/Garrison | Build established: Hacker-Mutant 9764 | -8/Garrison | Expanded RIF knowledge: Program Shield 9847 | -8/Garrison | Learned Materials security intel 9907 | -8/Garrison | Entered Materials 9907 | -8/Materials | Accompanied by 1 ally 9959 | -8/Materials | Identified exit to Garrison 11080 | -8/Materials | Core integrity fell below 50% 11159 | -8/Materials | Central database locked down 11189 | -8/Materials | Build established: Mutant 11246 | -8/Materials | Discovered new exit (range 15) 11357 | -8/Materials | Watched by a mysterious "MATRIX" hacker 11656 | -8/Materials | Repaired Broken Imp. VTOL Module 11683 | -8/Materials | Repaired Lgt. Treads 11735 | -8/Materials | Repaired Imp. Assault Rifle 11947 | -8/Materials | Entered Garrison 11947 | -8/Garrison | Accompanied by 1 ally 11989 | -8/Garrison | Expanded RIF knowledge: Signal Jamming 12067 | -8/Garrison | Triggered checkpoint 12389 | -8/Garrison | Triggered checkpoint 12453 | -8/Garrison | Build established: Hacker-Mutant 12454 | -8/Garrison | Discovered new exit (range 5) 12589 | -8/Garrison | Triggered checkpoint 12613 | -8/Garrison | Triggered checkpoint 12733 | -8/Garrison | Entered Materials 12857 | -8/Materials | Core integrity fell below 20% 12939 | -8/Materials | Lost 4 parts (1n1u2w) 13171 | -8/Materials | Identified exit to Factory 13221 | -8/Materials | Build established: Scavenger-Mutant 13333 | -8/Materials | Central database locked down 13636 | -8/Materials | Entered Factory 13636 | -7/Factory | Accompanied by 1 ally 13636 | -7/Factory | Evolved 2 slots: Utility x2 13789 | -7/Factory | Discovered new exit (range 15) 13817 | -7/Factory | Identified exit to Lower Caves 14029 | -7/Factory | Build established: Bothacker-Mutant 14540 | -7/Factory | Entered Lower Caves 15142 | -7/Lower Caves | Encountered a Warlord checkpoint 15174 | -7/Lower Caves | Learned location of Extension (-6) 15176 | -7/Lower Caves | Learned Factory trap positions 15192 | -7/Lower Caves | Discovered new exit (range 11) 15196 | -7/Lower Caves | Identified exit to Lower Caves 15236 | -7/Lower Caves | Entered another Lower Caves area 15240 | -7/Lower Caves | Discovered new exit (range 10) 15242 | -7/Lower Caves | Identified exit to Factory 15292 | -7/Lower Caves | Encountered a Warlord checkpoint 15362 | -7/Lower Caves | Build established: Hacker-Sprinter 15365 | -7/Lower Caves | Discovered new exit (range 5) 15366 | -7/Lower Caves | Identified exit to Data Miner 15474 | -7/Lower Caves | Entered Data Miner 15474 | -7/Data Miner | Discovered new exit (range 6) 15480 | -7/Data Miner | Met Data Miner 15490 | -7/Data Miner | Learned location of Section 7 (-2) 15490 | -7/Data Miner | Acquired the access code to Warlord's prototype stash 15494 | -7/Data Miner | Received God Mode back door access code from Data Miner 15501 | -7/Data Miner | Data Conduit disabled 15587 | -7/Data Miner | Identified exit to Proximity Caves 15587 | -7/Data Miner | Entered Proximity Caves 15590 | -6/Proximity Caves | Spotter reported a threat 15593 | -6/Proximity Caves | Attracted the attention of an 0b10 checkpoint 15626 | -6/Proximity Caves | Found Alien Artifact 15626 | -6/Proximity Caves | Identified Core Expander 15626 | -6/Proximity Caves | Installed Core Expander, added new Weapon slot 15661 | -6/Proximity Caves | Spotter reported a threat 15731 | -6/Proximity Caves | Discovered exit to Factory (range 7) 15736 | -6/Proximity Caves | Entered Factory 15736 | -6/Factory | Evolved 2 slots: Propulsion x1, Utility x1 15737 | -6/Factory | Loaded intel: 97 trap records 15849 | -6/Factory | Repaired Adv. Sensor Array 15956 | -6/Factory | Fabricated Biomechanical Wings? 16001 | -6/Factory | Discovered new exit (range 6) 16002 | -6/Factory | Identified exit to Extension 16002 | -6/Factory | Entered Extension 16352 | -6/Extension | First assault squad dispatched 16445 | -6/Extension | Rescued a captive Derelict 16457 | -6/Extension | Rescued a captive Derelict 16459 | -6/Extension | Rescued a captive Derelict 16559 | -6/Extension | Lost 9 allies 16647 | -6/Extension | Rescued a captive Derelict 16648 | -6/Extension | Rescued a captive Derelict 16672 | -6/Extension | Lost 4 allies 16701 | -6/Extension | Hacking Suite fried by hacking feedback 16757 | -6/Extension | Rescued a captive Derelict 16762 | -6/Extension | Rescued a captive Derelict 16763 | -6/Extension | Rescued a captive Derelict 16791 | -6/Extension | Repaired Imp. Flight Unit 16832 | -6/Extension | Repaired Imp. Light Armor Plating 16850 | -6/Extension | Targeted by mysterious "MATRIX" hacker 16850 | -6/Extension | Rescued a captive Derelict 16851 | -6/Extension | Rescued a captive Derelict 16911 | -6/Extension | Rescued A7 17014 | -6/Extension | Rescued a captive Derelict 17016 | -6/Extension | Rescued a captive Derelict 17039 | -6/Extension | Discovered new exit (range 10) 17041 | -6/Extension | Discovered new exit (range 6) 17046 | -6/Extension | Identified exit to Cetus 17070 | -6/Extension | Build established: Commander-Sprinter 17109 | -6/Extension | Entered Cetus 17109 | -6/Cetus | Accompanied by 18 allies (A7) 17114 | -6/Cetus | Acquired a Cetus Manufacturing Module code from A7 17115 | -6/Cetus | Spotted Cetus Guard 17115 | -6/Cetus | Spotted Cetus Guard 17119 | -6/Cetus | Spotted Cetus Guard 17131 | -6/Cetus | Spotted Cetus Guard 17143 | -6/Cetus | Allies destroyed Cetus Guard 17163 | -6/Cetus | Started Cetus Manufacturing Module 17171 | -6/Cetus | Lost 6 allies 17172 | -6/Cetus | Escorted A7 to Cetus Mainframe 17188 | -6/Cetus | Manufactured an Enhanced Grunt 17213 | -6/Cetus | Manufactured an Enhanced Grunt 17238 | -6/Cetus | Manufactured an Enhanced Grunt 17263 | -6/Cetus | Manufactured an Enhanced Grunt 17288 | -6/Cetus | Manufactured an Enhanced Grunt 17307 | -6/Cetus | Discovered new exit (range 15) 17324 | -6/Cetus | Spotted Cetus Guard 17325 | -6/Cetus | Spotted Cetus Guard 17344 | -6/Cetus | Spotted Cetus Guard 17344 | -6/Cetus | Spotted Cetus Guard 17349 | -6/Cetus | Allies destroyed Cetus Guard 17354 | -6/Cetus | Allies destroyed Cetus Guard 17360 | -6/Cetus | Allies destroyed Cetus Guard 17364 | -6/Cetus | Discovered new exit (range 15) 17366 | -6/Cetus | Met Revision 17 17374 | -6/Cetus | Murdered Revision 17 17441 | -6/Cetus | Murdered A7 17442 | -6/Cetus | Extracted ID and sensor layout for unrecognized location from A7's data core 17457 | -6/Cetus | Identified exit to Archives 17507 | -6/Cetus | Entered Archives 17507 | -6/Archives | Accompanied by 14 allies 17574 | -6/Archives | Discovered new exit (range 14) 17583 | -6/Archives | Lost 3 allies 17604 | -6/Archives | Discovered new exit (range 19) 17623 | -6/Archives | Discovered new exit (range 13) 18059 | -6/Archives | Identified exit to Hub_04(d) 18093 | -6/Archives | Entered Hub_04(d) 18093 | -6/Hub_04(d) | Accompanied by 12 allies 18137 | -6/Hub_04(d) | Identified exit to Factory 18326 | -6/Hub_04(d) | Lost 3 allies 18384 | -6/Hub_04(d) | Spotted B-75 Beast 18561 | -6/Hub_04(d) | Build established: Scavenger-Sprinter 18896 | -6/Hub_04(d) | Network Hub disabled 18902 | -6/Hub_04(d) | Entered Factory 18902 | -5/Factory | Accompanied by 4 allies 18902 | -5/Factory | Evolved 2 slots: Power x1, Propulsion x1 18915 | -5/Factory | Identified exit to Upper Caves 19047 | -5/Factory | Lost 5 parts (2p2n1w) 19136 | -5/Factory | Repaired Sml. Storage Unit 19171 | -5/Factory | Repaired Imp. VTOL Module 19349 | -5/Factory | Build established: Hacker-Scout 19479 | -5/Factory | Garrison activated, responded to threat 19554 | -5/Factory | Spotted CY-PHR 19613 | -5/Factory | Manually triggered Chute Trap 19613 | -5/Factory | Sucked down chute 19613 | -5/Factory | Entered Waste 19614 | -5/Waste | Met a frightened Derelict 19622 | -5/Waste | Spotted C-40 Crusher 19625 | -5/Waste | Spotted C-40 Crusher 19628 | -5/Waste | EMP discharged 19628 | -5/Waste | System corruption reached 10% 19651 | -5/Waste | Spotted C-40 Crusher 19651 | -5/Waste | Spotted C-40 Crusher 19653 | -5/Waste | Spotted C-40 Crusher 19659 | -5/Waste | Discovered new exit (range 10) 19662 | -5/Waste | Identified exit to Factory 19662 | -5/Waste | Entered Factory 19688 | -5/Factory | Spotted B-75 Beast 19733 | -5/Factory | Identified exit to Factory 19793 | -5/Factory | Fabricated Biomechanical Wings? 20029 | -5/Factory | Lost 3 parts (1p1n1w) 20115 | -5/Factory | Core integrity fell below 50% 20122 | -5/Factory | Lost 9 parts (2p4n2u1w) 20184 | -5/Factory | Core integrity fell below 20% 20185 | -5/Factory | Destroyed by H-66 Slayer with Gauss Rifle Last Messages --------------- 20181_ H-71 Marshal calls for reinforcements. 20181_ ALERT: Suspicious intruders detected, dispatching Specialist reinforcements to area. 20181_ Slug penetrates Wall. 20181_ Fusion Modulator explodes. 20181_ Imp. Hacking Suite destroyed. 20181_ Imp. Flight Unit destroyed. 20182_ Slug penetrates H-66 Slayer. 20182_ Penetrated by Slug. 20183_ Knocked back. 20184_ Penetrated by Slug. 20184_ Slammed into H-71 Marshal. 20185_ H-71 Marshal calls for reinforcements. 20185_ ALERT: Hostile activity reported, dispatching reinforcements to area. 20185_ Adv. System Shield destroyed. 20185_ Knocked back. 20185_ Slug penetrates Earth. 20185_ Slug penetrates Wall. 20185_ Penetrated by Slug. Map ----- +----------------------------------------------------+ | ??????????????????? # #?? | | ??????????????????? + #?? | | ??????????????????? # #?? | | ??????????????????? # ########## | | ????????????????????#############?# # | | ??????????????????????????????????# ^^# "" | | ??????????????????????????????????# # ! """ | | ??????????????????????????????????# # S" | | ??????????????????????????????????# + [ """ | | ??????????????????????????????????# # [[ """ | | ?????????????????""???????????????# # [[ | | ??????????????? ################ # | | ??????????????? ########## | | ???????????????? #????????? | | ????????????????? ^ #????????? | | ?????????????????? #????????? | | ??????????????????? #????????? | | ????????????????????# ;;;;;;;###+############? | | ????????????????????# ; # #? | | ????????????????""??# hh #? | | ??????????????? """?# # #? | | ???????????# !! """ # # #? | | ?????????????? ; # #? | | ????????????????????# H # #? | | ????????????????????# # #? | | ????????????????????# %%@ # #? | | ????????????????????#####;; # #? | | ????????????????????????##;;;;;;;;## #? | | ?????????????????????????# #### #? | | ?????????????????????????? ######??? #? | | ??????????????????????????##????????############?? | | ?????????????????????????????????????????????????? | | ?????????????????????????????????????????????????? | | ?????????????????????????????????????????????????? | | ?????????????????????????????????????????????????? | | ?????????????????????????????????????????????????? | | ?????????????????????????????????????????????????? | | ?????????????????????????????????????????????????? | | ?????????????????????????????????????????????????? | | ?????????????????????????????????????????????????? | | ?????????????????????????????????????????????????? | | ?????????????????????????????????????????????????? | | ?????????????????????????????????????????????????? | | ?????????????????????????????????????????????????? | | ?????????????????????????????????????????????????? | | ?????????????????????????????????????????????????? | | ?????????????????????????????????????????????????? | | ?????????????????????????????????????????????????? | | ?????????????????????????????????????????????????? | | ?????????????????????????????????????????????????? | +----------------------------------------------------+ Best States ------------- Heat Dissipation 40 Energy Generation 29 Energy Capacity 500 Matter Stores 300 Matter Capacity 300 Sight Range 22 Robot Scan Range 16 Terrain Scan Density 10 Armor Coverage 225 Resistance: TH 10 Melee Speed Boost 20 Phase Shifting 5 Evasion (%) 69 Melee Accuracy 5 Recoil Reduction 4 Offensive Hacking 24 Defensive Hacking 14 Relay Coupler Types 1 Relay Coupler Value 34 Authchip Count 1 Trap Extractor Capacity 6 Item Schematics ----------------- Hacking Suite | -9/Materials | Scanalyzed ECM Suite | -9/Materials | Scanalyzed Imp. VTOL Module | -8/Materials | Scanalyzed Imp. Light Armor Plating | -8/Materials | Scanalyzed F-cell Engine | -8/Materials | Scanalyzed Adv. System Restoration Module | -7/Factory | Hacked Combat Drone Bay | -7/Data Miner | Free Lgt. Regenerative Plating | -7/Data Miner | Free Biomechanical Wings | -7/Data Miner | Free Exp. Power Shielding | -7/Data Miner | Free Force Rifle | -7/Data Miner | Free Cmb. Gravmag System | -7/Data Miner | Free Adv. System Shield | -7/Data Miner | Free Disruptor Cannon | -7/Data Miner | Free Imp. Gravmag System | -7/Data Miner | Free Adv. Hardlight Generator | -7/Data Miner | Free Nuclear Pulse Array | -6/Factory | Hacked Imp. Utility Shielding | -5/Factory | Scanalyzed Robot Schematics ------------------ W-25 Informer | -7/Data Miner | Free C-17 Slicer | -7/Data Miner | Free B-48 Gladiator | -7/Data Miner | Free G-47 Trooper | -7/Data Miner | Free D-63 Destroyer | -7/Data Miner | Free Y-64 Sentinel | -7/Data Miner | Free Fabricated ------------ Biomechanical Wings | x1 | -6/Factory | Authchip Biomechanical Wings | x1 | -5/Factory Repaired ---------- Lgt. Armor Plating | 30% | -10/Materials Lgt. Treads | 47% | -9/Materials Lgt. Cannon | 7% | -9/Materials Lgt. Cannon | 40% | -9/Materials Hrd. Light Armor Plating | 60% | -9/Materials Lgt. Treads | 63% | -9/Materials Lgt. Treads | 70% | -9/Materials Hrd. Light Armor Plating | 69% | -9/Materials Lgt. Treads | 33% | -9/Storage Lgt. Treads | 48% | -9/Storage Lgt. Treads | 60% | -9/Storage Lgt. Treads | 72% | -9/Storage Hvy. Ion Engine | 67% | -9/Storage Imp. VTOL Module | 99% | -8/Materials | Broken Lgt. Treads | 27% | -8/Materials Imp. Assault Rifle | 50% | -8/Materials Adv. Sensor Array | 50% | -6/Factory Imp. Flight Unit | 7% | -6/Extension Imp. Light Armor Plating | 28% | -6/Extension Sml. Storage Unit | 39% | -5/Factory Imp. VTOL Module | 46% | -5/Factory Studied --------- Lgt. Deuterium Engine | -8/Materials | Hacked Missile Launcher | -8/Materials | Hacked Hvy. Hammer | -8/Materials | Hacked Lgt. Treads | -8/Materials | Hacked Lgt. Fission Core | -6/Factory | Hacked Nuclear Pulse Thruster | -5/Factory | Hacked Alien Tech Used ----------------- Core Expander Achievements -------------- Fight Me IRL Challenges ------------ None Game ------ Seed ImpactRiotMindspike Manual? 0 Play Time 02:23:13 Cumulative 2295.9 hours Start 2026.08.27 @ 01:13:53 End 2026.08.27 @ 03:38:44 Sessions 3 Manual Loads 0 Difficulty Rogue Special Mode None Game No. 1436 Rogue 1432 Adventurer 4 Explorer 0 Win Type - Total 333 Types 250/14/27/11/4/1/6/10/6/4 Lore% 98 Gallery% 95 Achievement% 94 Wizard Run 0 Options --------- Layout 2 ASCII 0 Keyboard 1 Movement Vi Keybinds 0 Fullscreen 0 Font 24/Terminus Map View 59x48 Zoom Use 0% Tactical HUD 1 Map Filters NONE Filters NONE Steam 1 RUN: 6aca37cc-9eb5-40af-b61c-d9e16f17769a